fUSD/lending_fUSD_20260419
["ID","MTS","AMOUNT","RATE_DAILY","PERIOD"]
[420819419,1776574234243,-1017.11497515,0.00010252,2]
[420819425,1776574239117,-793.66649967,0.00010252,2]
[420819476,1776574240280,-869.0586683,0.00010252,2]
[420819477,1776574240334,-1193.34728589,0.00010252,2]
[420819478,1776574240343,-6502.40950617,0.00010394,2]
[420819479,1776574240355,-2007.67750308,0.00010394,2]
[420819486,1776574247193,-3777.75,0.00010394,2]
[420819487,1776574248026,-367.28144737,0.00010394,2]
[420819488,1776574248038,-9263.48866085,0.00010394,2]
[420819489,1776574248054,-870.61451911,0.00010394,2]
[420819490,1776574248065,-15092.22714659,0.00010394,2]
[420819491,1776574248094,-290.69999999,0.00010394,2]
[420819492,1776574248147,-1971.91147274,0.00010394,2]
[420819493,1776574602611,500.0,0.00032876,120]
[420819494,1776574604979,500.0,0.00032876,120]
[420819495,1776574606272,500.0,0.00032876,120]
[420819496,1776574608044,500.0,0.00032876,120]
[420819497,1776574609248,500.0,0.00032876,120]
[420819498,1776574612404,500.0,0.00032876,120]
[420819499,1776574612578,500.0,0.00032876,120]
[420819500,1776574612913,500.0,0.00032876,120]
[420819501,1776574613907,500.0,0.00032876,120]
[420819502,1776574614941,500.0,0.00032876,120]
[420819503,1776574616344,500.0,0.00032876,120]
[420819504,1776574617502,500.0,0.00032876,120]
[420819506,1776574801210,288.32374846,0.00017795,120]
[420819510,1776575024259,523.71,0.0003269,120]
[420819511,1776575143997,150.0,0.0003287,120]
[420819512,1776575255362,644.89,0.00032876,120]
[420819513,1776575295926,181.0,0.00032876,120]
[420819514,1776575299097,264.83,0.0003269,120]
[420819515,1776575347872,300.32335831,0.00032,120]
[420819518,1776575432322,-154.01593134,8.334e-05,2]
[420819519,1776575432334,-150.0,8.334e-05,2]
[420819520,1776575432345,-150.0,8.334e-05,2]
[420819521,1776575432355,-150.0,8.334e-05,2]
[420819522,1776575432365,-150.0,8.334e-05,2]
[420819523,1776575432375,-300.0,8.9e-05,3]
[420819524,1776575432385,-700.0,9e-05,3]
[420819525,1776575432395,-407.79945242,9.086e-05,2]
[420819526,1776575432408,-1400.28333154,9.086e-05,2]
[420819527,1776575432421,-208.64821604,9.086e-05,2]
[420819528,1776575432431,-172.154,9.086e-05,2]
[420819529,1776575432441,-300.0,9.17e-05,2]
[420819530,1776575432454,-979.424,9.171e-05,2]
[420819531,1776575432464,-2071.83472478,9.171e-05,2]
[420819532,1776575432494,-1630.87669183,9.171e-05,2]
[420819533,1776575432507,-1074.01209574,9.171e-05,2]
[420819534,1776575432519,-9000.29639889,9.171e-05,2]
[420819535,1776575432668,-4896.77094212,9.171e-05,2]
[420819536,1776575432680,-21274.76981729,9.171e-05,2]
[420819537,1776575432692,-622.24371639,9.171e-05,2]
[420819538,1776575432705,-817.79588592,9.171e-05,2]
[420819539,1776575432717,-278.617552,9.171e-05,2]
[420819540,1776575432729,-104331.87698475,9.171e-05,2]
[420819541,1776575432742,-206.62979029,9.171e-05,2]
[420819542,1776575432752,-15192.6715,9.171e-05,2]
[420819543,1776575432762,-150.0,9.27e-05,2]
[420819544,1776575432773,-500.0,9.27e-05,2]
[420819545,1776575432782,-500.0,9.27e-05,2]
[420819546,1776575432793,-500.0,9.27e-05,2]
[420819547,1776575432803,-500.0,9.27e-05,2]
[420819548,1776575432813,-500.0,9.27e-05,2]
[420819549,1776575432823,-500.0,9.27e-05,2]
[420819550,1776575432833,-500.0,9.27e-05,2]
[420819551,1776575432847,-500.0,9.27e-05,2]
[420819552,1776575432857,-500.0,9.27e-05,2]
[420819554,1776575432867,-500.0,9.27e-05,2]
[420819556,1776575432877,-500.0,9.27e-05,2]
[420819559,1776575432887,-500.0,9.27e-05,2]
[420819560,1776575432897,-500.0,9.27e-05,2]
[420819563,1776575432908,-500.0,9.27e-05,2]
[420819564,1776575432918,-500.0,9.27e-05,2]
[420819567,1776575432928,-500.0,9.27e-05,2]
[420819569,1776575432938,-500.0,9.27e-05,2]
[420819571,1776575432948,-500.0,9.27e-05,2]
[420819572,1776575432958,-563.93547848,9.27e-05,2]
[420819573,1776575432968,-500.0,9.27e-05,2]
[420819574,1776575432978,-500.0,9.27e-05,2]
[420819575,1776575432988,-500.0,9.27e-05,2]
[420819576,1776575432998,-500.0,9.27e-05,2]
[420819577,1776575433009,-500.0,9.27e-05,2]
[420819578,1776575433019,-500.0,9.27e-05,2]
[420819579,1776575433028,-500.0,9.27e-05,2]
[420819580,1776575433038,-500.0,9.27e-05,2]
[420819581,1776575433048,-500.0,9.27e-05,2]
[420819582,1776575433058,-254.2778506,9.27e-05,2]
[420819583,1776575433069,-500.0,9.27e-05,2]
[420819584,1776575433082,-428.16976725,9.27e-05,2]
[420819585,1776575433091,-500.0,9.27e-05,2]
[420819586,1776575433101,-500.0,9.27e-05,2]
[420819587,1776575433111,-500.0,9.27e-05,2]
[420819588,1776575433121,-500.0,9.27e-05,2]
[420819589,1776575433132,-160.56833518,9.27e-05,2]
[420819590,1776575433142,-500.0,9.27e-05,2]
[420819591,1776575433152,-160.2669701,9.27e-05,2]
[420819592,1776575433162,-292.54185534,9.27e-05,2]
[420819593,1776575433172,-339.02870549,9.27e-05,2]
[420819594,1776575433182,-725.83,9.609e-05,2]
[420819595,1776575433192,-2630.04950987,9.803e-05,2]
[420819652,1776575440812,-4624.50776565,9.803e-05,2]
[420819653,1776575443247,-2982.07526738,9.803e-05,2]
[420819654,1776575443258,-307.42729492,0.0001,2]
[420819656,1776575443270,-625.58211033,0.0001,2]
[420819657,1776575443282,-559.2145116,0.0001,2]
[420819658,1776575443292,-610.59855777,0.0001,2]
[420819659,1776575443304,-151.0,0.0001,2]
[420819660,1776575443314,-151.0,0.0001,2]
[420819661,1776575443325,-151.0,0.0001,2]
[420819662,1776575443336,-151.0,0.0001,2]
[420819663,1776575443347,-151.0,0.0001,2]
[420819664,1776575443358,-151.0,0.0001,2]
[420819665,1776575443369,-151.0,0.0001,2]
[420819666,1776575443380,-151.0,0.0001,2]
[420819667,1776575443392,-151.0,0.0001,2]
[420819668,1776575443404,-151.0,0.0001,2]
[420819669,1776575443415,-206.5217041,0.0001,2]
[420819670,1776575443425,-200.0,0.00010102,2]
[420819671,1776575443435,-1600.0,0.00010113,2]
[420819672,1776575443446,-299.99,0.00010113,2]
[420819673,1776575443456,-150.99,0.00010113,2]
[420819674,1776575443468,-245.6141698,0.000102,2]
[420819675,1776575443479,-2091.77385572,0.000102,2]
[420819678,1776575443787,-1191.54614428,0.000102,2]
[420819679,1776575443797,-2591.00385572,0.000102,2]
[420819680,1776575443810,-2807.96614428,0.000102,2]
[420819681,1776575443821,-158.73,0.00010287,2]
[420819682,1776575443832,-153.4004789,0.00010391,2]
[420819683,1776575443843,-1532.0,0.00010394,2]
[420819684,1776575443854,-300.0,0.00010394,2]
[420819685,1776575443865,-1532.0,0.00010394,2]
[420819686,1776575443875,-1532.0,0.00010394,2]
[420819687,1776575443886,-1532.0,0.00010394,2]
[420819688,1776575443897,-167.13250353,0.00010394,2]
[420819689,1776575443908,-1532.0,0.00010394,2]
[420819690,1776575443918,-1532.0,0.00010394,2]
[420819691,1776575443929,-1280.15080074,0.00010394,2]
[420819692,1776575443939,-151.0,0.00010394,2]
[420819693,1776575443952,-151.0,0.00010394,2]
[420819694,1776575443963,-151.0,0.00010394,2]
[420819695,1776575443975,-152.0,0.00010394,2]
[420819696,1776575443986,-152.0,0.00010394,2]
[420819697,1776575443996,-152.0,0.00010394,2]
[420819698,1776575444007,-158.72442697,0.00010394,2]
[420819699,1776575444017,-500.0,0.0001053,2]
[420819700,1776575444029,-1500.0,0.00010551,2]
[420819701,1776575444040,-151.0,0.00010597,2]
[420819702,1776575444051,-151.0,0.00010597,2]
[420819703,1776575444061,-297.50594,0.0001064,2]
[420819704,1776575444075,-560.7100339,0.00010676,2]
[420819705,1776575444086,-297.50595,0.0001069,2]
[420819706,1776575444097,-73361.75646928,0.000107,2]
[420819707,1776575444108,-151.0,0.000107,2]
[420819708,1776575444118,-151.68511,0.000107,2]
[420819709,1776575444129,-151.0,0.000107,2]
[420819710,1776575444140,-151.0,0.000107,2]
[420819711,1776575444150,-151.0,0.000107,2]
[420819712,1776575444161,-152.50047,0.000107,2]
[420819713,1776575444171,-297.50594,0.000107,2]
[420819714,1776575444182,-297.50595,0.000107,2]
[420819715,1776575444193,-607.14,0.00010716,2]
[420819716,1776575444204,-2000.0,0.00010722,2]
[420819717,1776575444213,-297.50595,0.0001074,2]
[420819718,1776575444224,-540.44467617,0.0001075,30]
[420819719,1776575444233,-578.20924308,0.00010778,2]
[420819720,1776575444245,-201.93286098,0.00010778,2]
[420819721,1776575444256,-695.39793187,0.00010778,2]
[420819722,1776575444266,-500.0,0.00010778,2]
[420819723,1776575444276,-1377.42282659,0.00010778,2]
[420819724,1776575444287,-200.0,0.00010778,2]
[420819725,1776575444298,-9211.34798985,0.00010778,2]
[420819726,1776575444308,-429.10050983,0.00010778,2]
[420819727,1776575444318,-151.0,0.00010778,2]
[420819728,1776575444328,-2000.0,0.00010778,2]
[420819729,1776575444338,-2000.0,0.00010778,2]
[420819730,1776575444349,-2000.0,0.00010778,2]
[420819731,1776575444360,-2000.0,0.00010778,2]
[420819732,1776575444371,-2000.0,0.00010778,2]
[420819734,1776575444382,-2095.774875,0.00010778,2]
[420819735,1776575444392,-151.12010474,0.00010778,2]
[420819736,1776575444402,-152.18421794,0.00010778,2]
[420819737,1776575444413,-201.93286099,0.00010778,2]
[420819738,1776575444424,-200.0,0.00010778,2]
[420819739,1776575444434,-743.50770149,0.00010778,2]
[420819740,1776575444445,-1000.0,0.00010778,2]
[420819741,1776575444457,-1000.0,0.00010778,2]
[420819742,1776575444467,-297.50594,0.0001079,2]
[420819743,1776575444477,-500.0,0.00010833,2]
[420819744,1776575444487,-9552.16786547,0.00010833,2]
[420819745,1776575444497,-151.0,0.00010833,2]
[420819746,1776575444507,-151.0,0.00010888,2]
[420819747,1776575444517,-151.0,0.00010888,2]
[420819748,1776575444529,-151.0,0.00010888,2]
[420819749,1776575444539,-500.0,0.00010888,2]
[420819750,1776575444552,-6017.92449847,0.00010888,2]
[420819751,1776575444571,-271.96277641,0.00010888,2]
[420819752,1776575447503,-3615.71080162,0.00010888,2]
[420819753,1776575447514,-151.0,0.00010888,2]
[420819754,1776575447525,-1100.0,0.000109,3]
[420819755,1776575447535,-10673.54083951,0.000109,2]
[420820115,1776575783054,10000.0,0.00032877,120]
[420820116,1776575850745,200.0,0.00012329,90]
[420820117,1776575851211,200.0,0.00012329,90]
[420820118,1776575851612,200.0,0.00012329,90]
[420820119,1776575852041,200.0,0.00012329,90]
[420820120,1776575852459,200.0,0.00012329,90]
[420820121,1776575852851,200.0,0.00012329,90]
[420820122,1776575853275,200.0,0.00012329,90]
[420820123,1776575853669,200.0,0.00012329,90]
[420820124,1776575854053,200.0,0.00012329,90]
[420820125,1776575854646,200.0,0.00012329,90]
[420820126,1776575855033,200.0,0.00012329,90]
[420820127,1776575855443,200.0,0.00012329,90]
[420820128,1776575856050,200.0,0.00012329,90]
[420820129,1776575856433,200.0,0.00012329,90]
[420820130,1776575856829,200.0,0.00012329,90]
[420820131,1776575857215,200.0,0.00012329,90]
[420820132,1776575857826,333.093016,0.00012329,90]
[420820134,1776576631628,-151.35,8.22e-05,2]
[420820135,1776576631637,-150.30135682,8.236e-05,2]
[420820136,1776576631648,-150.0,8.236e-05,2]
[420820137,1776576631658,-708.10694529,8.251e-05,2]
[420820138,1776576631667,-300.0,8.266e-05,2]
[420820139,1776576631677,-300.0,8.296e-05,2]
[420820140,1776576631687,-163.45,8.357e-05,2]
[420820141,1776576631697,-300.0,8.744e-05,2]
[420820142,1776576631707,-500.0,8.9e-05,3]
[420820143,1776576631716,-131.71233289,8.987e-05,2]
[420820144,1776576631736,-797.78372032,8.987e-05,2]
[420820145,1776576631759,-270.50394679,8.987e-05,2]
[420820146,1776576631768,-1510.93080191,8.988e-05,2]
[420820147,1776576631779,-618.31401655,8.988e-05,2]
[420820148,1776576631790,-422.86618154,8.988e-05,2]
[420820149,1776576631799,-170.539,8.988e-05,2]
[420820150,1776576631809,-585.8229508,9e-05,3]
[420820151,1776576631860,-405.21062676,9e-05,3]
[420820152,1776576631917,-8.96642244,9e-05,3]
[420820153,1776576631929,-300.0,9.058e-05,2]
[420820154,1776576631938,-300.0,9.059e-05,2]
[420820155,1776576631948,-250.0,9.059e-05,2]
[420820156,1776576631957,-300.0,9.059e-05,2]
[420820157,1776576631967,-250.0,9.059e-05,2]
[420820158,1776576631976,-5000.0,9.059e-05,2]
[420820160,1776576631986,-250.0,9.059e-05,2]
[420820162,1776576631996,-150.0,9.07e-05,2]
[420820164,1776576632005,-7975.1439,9.071e-05,2]
[420820165,1776576632015,-2500.0,9.071e-05,2]
[420820167,1776576632025,-163190.07389452,9.071e-05,2]
[420820169,1776576632037,-55371.15056746,9.071e-05,2]
[420820197,1776576637801,-600.0,9.071e-05,2]
[420820200,1776576638403,-1306.115811,9.071e-05,2]
[420820235,1776576640821,-1800.02694516,9.071e-05,2]
[420820236,1776576640840,-1009.82949311,9.071e-05,2]
[420820237,1776576640885,-6442.65188875,9.071e-05,2]
[420820238,1776576640895,-2500.0,9.071e-05,2]
[420820239,1776576640904,-185.21,9.17e-05,2]
[420820240,1776576640914,-500.0,9.17e-05,2]
[420820241,1776576640925,-500.0,9.17e-05,2]
[420820242,1776576640934,-456.39354784,9.17e-05,2]
[420820243,1776576640943,-240.06314835,9.17e-05,2]
[420820244,1776576640952,-2000.0,9.884e-05,2]
[420820245,1776576640961,-1680.0,9.886e-05,2]
[420820246,1776576640971,-150.0,9.891e-05,21]
[420820247,1776576640982,-24999.99,9.891e-05,2]
[420820248,1776576640992,-9999.99,9.891e-05,2]
[420820249,1776576641000,-9999.99,9.891e-05,2]
[420820250,1776576641010,-518.91,9.891e-05,2]
[420820251,1776576641019,-7184.02,9.891e-05,2]
[420820252,1776576641028,-255.0,9.977e-05,2]
[420820253,1776576641037,-199.34462682,0.0001,2]
[420820254,1776576641048,-297.46299276,0.0001,2]
[420820255,1776576641057,-279.94126373,0.0001,2]
[420820256,1776576641067,-307.86477223,0.0001,2]
[420820257,1776576641077,-151.0,0.0001,2]
[420820258,1776576641087,-151.0,0.0001,2]
[420820259,1776576641096,-151.0,0.0001,2]
[420820260,1776576641106,-151.0,0.0001,2]
[420820261,1776576641116,-151.0,0.0001,2]
[420820262,1776576641126,-151.0,0.0001,2]
[420820263,1776576641135,-151.0,0.0001,2]
[420820264,1776576641145,-151.0,0.0001,2]
[420820265,1776576641154,-151.0,0.0001,2]
[420820266,1776576641163,-151.0,0.0001,2]
[420820267,1776576641172,-151.0,0.0001,2]
[420820268,1776576641182,-151.0,0.0001,2]
[420820269,1776576641191,-1500.0,0.00010005,2]
[420820270,1776576641201,-299.99,0.00010005,2]
[420820271,1776576641211,-2315.16872989,0.00010005,2]
[420820277,1776576642804,-900.0,0.00010005,2]
[420820278,1776576642910,-1784.82127011,0.00010005,2]
[420820279,1776576642920,-150.99,0.00010005,2]
[420820280,1776576642929,-7977.3,0.00010005,2]
[420820281,1776576642939,-616.79193798,0.00010043,2]
[420820282,1776576642948,-16280.9,0.00010064,2]
[420820283,1776576642957,-500.0,0.00010122,2]
[420820284,1776576642967,-150.45087984,0.00010143,21]
[420820285,1776576642976,-501.70516219,0.00010217,2]
[420820286,1776576642986,-502.64562537,0.00010217,2]
[420820287,1776576642995,-2000.0,0.00010321,2]
[420820288,1776576643005,-151.0,0.00010321,2]
[420820289,1776576643014,-164.00272,0.00010321,2]
[420820290,1776576643023,-250.44,0.00010372,2]
[420820291,1776576643032,-150.36,0.00010484,2]
[420820292,1776576643042,-578.20924308,0.00010493,2]
[420820293,1776576643051,-5615.28498071,0.00010493,2]
[420820302,1776576645739,-3596.06300914,0.00010493,2]
[420820303,1776576645749,-695.39793187,0.00010493,2]
[420820304,1776576645759,-1377.42282659,0.00010493,2]
[420820305,1776576645768,-500.0,0.00010493,2]
[420820306,1776576645777,-202.68934374,0.00010493,2]
[420820307,1776576645787,-201.93286098,0.00010493,2]
[420820308,1776576645796,-151.0,0.00010493,2]
[420820309,1776576645805,-155.09876715,0.00010493,2]
[420820310,1776576645814,-1000.0,0.00010493,2]
[420820311,1776576645823,-1000.0,0.00010493,2]
[420820312,1776576645833,-672.36369839,0.00010493,2]
[420820313,1776576645842,-418.9812573,0.00010493,2]
[420820314,1776576645851,-174.61919141,0.00010493,2]
[420820315,1776576645860,-283.9259868,0.00010493,2]
[420820316,1776576645869,-188.7255859,0.00010493,2]
[420820317,1776576645879,-9552.16786547,0.00010548,2]
[420820318,1776576645888,-500.0,0.00010548,2]
[420820319,1776576645898,-151.0,0.00010548,2]
[420820320,1776576645909,-9905.5980765,0.00010603,2]
[420820321,1776576645920,-500.0,0.00010603,2]
[420820322,1776576645930,-151.0,0.00010603,2]
[420820323,1776576645939,-151.0,0.00010658,2]
[420820324,1776576645948,-7563.45432649,0.00010658,2]
[420820325,1776576645960,-2708.65087884,0.00010658,2]
[420820326,1776576645969,-500.0,0.00010658,2]
[420820327,1776576645979,-151.0,0.00010658,2]
[420820328,1776576645988,-316.0,0.00010667,5]
[420820329,1776576645998,-1754.54818031,0.00010713,2]
[420820330,1776576646008,-500.0,0.00010713,2]
[420820331,1776576646017,-151.0,0.00010713,2]
[420820332,1776576646026,-672.5498003,0.00010758,2]
[420820333,1776576646035,-738.44143364,0.00010758,2]
[420820334,1776576646046,-1864.96430426,0.00010758,2]
[420820335,1776576646055,-500.0,0.00010768,2]
[420820336,1776576646064,-178.50357,0.0001079,2]
[420820337,1776576646074,-178.50357,0.0001079,2]
[420820338,1776576646083,-500.0,0.00010823,2]
[420820339,1776576646092,-1219.47875318,0.00010874,2]
[420820340,1776576646275,-695.5744148,0.00010874,2]
[420820407,1776576957764,50542.79255276,0.0003287,120]
[420820408,1776576985814,-568.0,9.07e-05,2]
[420820409,1776576985842,-300.0,9.07e-05,2]
[420820410,1776576985868,-150.0,9.07e-05,2]
[420820411,1776576985899,-161.82150532,9.07e-05,2]
[420820412,1776576985928,-21820.17849468,9.071e-05,2]
[420820425,1776577831988,-498.89387459,8.89e-05,2]
[420820426,1776577832042,-1983.74112541,8.89e-05,2]
[420820427,1776577832051,-190.23,8.89e-05,2]
[420820428,1776577832061,-400.0,8.9e-05,3]
[420820429,1776577832070,-150.0,8.97e-05,2]
[420820430,1776577832080,-1105.0,8.97e-05,2]
[420820431,1776577832090,-191354.56819564,8.971e-05,2]
[420820438,1776577838152,-2161.63062384,8.971e-05,2]
[420820439,1776577838260,-267.29626824,8.971e-05,2]
[420820440,1776577838314,-325.02024,8.971e-05,2]
[420820441,1776577838369,-513.67975255,8.971e-05,2]
[420820465,1776577840370,-4033.83217871,8.971e-05,2]
[420820466,1776577840690,-20299.755009,8.971e-05,2]
[420820467,1776577843254,-888.0,8.971e-05,2]
[420820468,1776577843362,-15654.64290021,8.971e-05,2]
[420820469,1776577846743,-923.0,8.971e-05,2]
[420820470,1776577846776,-616.0,8.971e-05,2]
[420820471,1776577847055,-16.82487615,8.971e-05,2]
[420820472,1776577847072,-419.72759969,8.971e-05,2]
[420820473,1776577847088,-628.67015219,8.971e-05,2]
[420820474,1776577847143,-380.29126007,8.971e-05,2]
[420820475,1776577847381,-17871.35132159,8.971e-05,2]
[420820491,1776577871634,347.68,0.000328,120]
[420820492,1776577880450,161.42,0.000328,120]
[420820504,1776578445430,500.0,0.00032877,120]
[420820507,1776578452690,500.0,0.00032192,120]
[420820508,1776578452748,1571.69,0.00032603,120]
[420820509,1776578452803,1066.19,0.00032603,120]
[420820510,1776578454997,1571.69,0.00032603,120]
[420820511,1776578455052,1066.19,0.00032603,120]
[420820512,1776578457503,671.94782969,0.0003287,120]
[420820513,1776578457590,1571.69,0.00032603,120]
[420820514,1776578457642,844.6020514,0.00032603,120]
[420820515,1776578459490,1571.69,0.00032603,120]
[420820516,1776578461749,1228.13857824,0.00032603,120]
[420820517,1776578465079,355.47919034,0.00032876,120]
[420820518,1776578465159,2134.85033317,0.00032876,120]
[420820519,1776578481416,1557.91281,0.0003287,120]
[420820520,1776578495900,1289.0,0.00032876,120]
[420820521,1776578495959,1583.52860755,0.00032876,120]
[420820522,1776578496031,1692.49694285,0.00032876,120]
[420820523,1776578499708,2163.8840337,0.0003287,120]
[420820524,1776578508854,745.0,0.0003287,120]
[420820525,1776578510115,704.0,0.0003287,120]
[420820526,1776578510663,151.58,0.0003287,120]
[420820527,1776578510887,1860.0,0.0003287,120]
[420820528,1776578511674,1993.0,0.0003287,120]
[420820529,1776578512453,1870.0,0.0003287,120]
[420820530,1776578513446,500.0,0.00032877,120]
[420820531,1776578513525,1954.0,0.0003287,120]
[420820532,1776578514075,1723.0,0.0003287,120]
[420820533,1776578514870,561.0,0.0003287,120]
[420820535,1776578518667,336.0,0.0003287,120]
[420820536,1776578518821,380.0,0.0003287,120]
[420820537,1776578518888,1112.0999419,0.00032877,120]
[420820538,1776578519326,187.0,0.0003287,120]
[420820539,1776578522885,197.18,0.000134,120]
[420820543,1776578542360,1188.0,0.00032877,120]
[420820544,1776578542416,1597.0,0.00032877,120]
[420820546,1776578557362,1804.0,0.0003287,120]
[420820547,1776578558143,2110.64915367,0.0003287,120]
[420820555,1776578566857,598.63,0.00032877,120]
[420820556,1776578570349,500.0,0.00032877,120]
[420820557,1776578571287,1441.2,0.00026027,120]
[420820558,1776578571613,1441.2,0.00026274,120]
[420820559,1776578571924,1441.22,0.00026521,120]
[420820570,1776578620886,276.86,0.0003269,120]
[420820571,1776578629127,309.0,0.0003287,120]
[420820572,1776578629903,213.74472953,0.0003287,120]
[420820580,1776578640160,1165.4,0.00032877,120]
[420820583,1776578678642,1879.97923526,0.00032822,120]
[420820584,1776578680725,2016.0884723,0.00032575,120]
[420820585,1776578683052,155.0,0.000328,120]
[420820586,1776578684857,155.0,0.000328,120]
[420820587,1776578689077,155.0,0.000328,120]
[420820588,1776578704890,155.0,0.000328,120]
[420820589,1776578708066,155.0,0.000328,120]
[420820590,1776578713130,155.0,0.000328,120]
[420820591,1776578713343,155.0,0.000328,120]
[420820592,1776578721953,155.0,0.000328,120]
[420820593,1776578725029,155.0,0.000328,120]
[420820594,1776578737521,372.0,0.00032876,120]
[420820595,1776578746272,1041.63289667,0.00027397,120]
[420820596,1776578752017,500.0,0.0003287,120]
[420820597,1776578842116,162.19495073,0.00032877,120]
[420820598,1776578842175,1597.0,0.00032877,120]
[420820599,1776578871222,500.0,0.00032876,120]
[420820600,1776578871466,500.0,0.00032876,120]
[420820601,1776578871697,500.0,0.00032876,120]
[420820602,1776578871927,500.0,0.00032876,120]
[420820603,1776578872218,500.0,0.00032876,120]
[420820604,1776578872458,500.0,0.00032876,120]
[420820605,1776578872719,500.0,0.00032876,120]
[420820606,1776578872946,500.0,0.00032876,120]
[420820607,1776578873183,500.0,0.00032876,120]
[420820608,1776578873424,500.0,0.00032876,120]
[420820609,1776578873662,309.56746753,0.00032876,120]
[420820610,1776578874035,1000.00000001,0.00032,120]
[420820612,1776579003017,150.0,0.00017795,120]
[420820613,1776579003185,250.59953419,0.00017795,120]
[420820614,1776579003241,305.49758992,0.00032876,120]
[420820615,1776579032159,-150.0,8.679e-05,2]
[420820616,1776579032169,-150.0,8.679e-05,2]
[420820617,1776579032178,-47.8503141,8.679e-05,2]
[420820618,1776579032264,-102.1496859,8.679e-05,2]
[420820619,1776579032273,-150.0,8.679e-05,2]
[420820620,1776579032284,-150.0,8.679e-05,2]
[420820621,1776579032294,-300.0,8.825e-05,2]
[420820622,1776579032303,-300.0,8.965e-05,2]
[420820623,1776579032312,-300.88283027,8.965e-05,2]
[420820624,1776579032323,-337.63921372,8.971e-05,2]
[420820625,1776579032335,-136.52247588,8.971e-05,2]
[420820626,1776579032344,-1657.95502743,8.987e-05,2]
[420820627,1776579032363,-1005.3639732,8.987e-05,2]
[420820628,1776579032374,-418.75,8.987e-05,2]
[420820629,1776579032385,-284.15203215,8.987e-05,2]
[420820630,1776579032425,-462.46160238,8.987e-05,2]
[420820631,1776579032437,-191.76736484,8.987e-05,2]
[420820632,1776579032446,-300.0,9.094e-05,2]
[420820633,1776579032455,-285.13,9.095e-05,2]
[420820634,1776579032465,-1228.7009344,9.148e-05,2]
[420820635,1776579032474,-430.98,9.182e-05,2]
[420820637,1776579032483,-1840.17,9.41e-05,2]
[420820638,1776579032492,-1500.0,9.456e-05,2]
[420820639,1776579032502,-300.0,9.547e-05,2]
[420820640,1776579032511,-300.0,9.547e-05,2]
[420820641,1776579032521,-5000.0,9.547e-05,2]
[420820642,1776579032530,-250.0,9.547e-05,2]
[420820643,1776579032539,-150.0,9.666e-05,2]
[420820644,1776579032549,-500.0,9.667e-05,2]
[420820645,1776579032559,-177.99449542,9.667e-05,2]
[420820646,1776579032569,-500.0,9.667e-05,2]
[420820647,1776579032580,-500.0,9.667e-05,2]
[420820648,1776579032590,-500.0,9.667e-05,2]
[420820649,1776579032599,-459.93833912,9.667e-05,2]
[420820650,1776579032609,-278.70746923,9.667e-05,2]
[420820651,1776579032618,-500.0,9.667e-05,2]
[420820652,1776579032627,-500.0,9.667e-05,2]
[420820653,1776579032637,-24999.99,9.667e-05,2]
[420820654,1776579032646,-150.99,9.667e-05,2]
[420820655,1776579032656,-14127.93,9.667e-05,2]
[420820656,1776579032665,-250.0,9.668e-05,2]
[420820657,1776579032674,-9999.99,9.668e-05,2]
[420820658,1776579032684,-64762.41601572,9.668e-05,2]
[420820659,1776579032695,-582.16183278,9.668e-05,2]
[420820660,1776579032707,-252.80804943,9.668e-05,2]
[420820661,1776579038616,-192.80922118,9.094e-05,2]
[420820662,1776579038626,-3582.19077882,9.668e-05,2]
[420820663,1776579038639,-304.5454,9.668e-05,2]
[420820664,1776579038652,-2614.20819549,9.668e-05,2]